{"text_format":"1","workbook":"xlsx","n_sheets":1,"sheets":["Sheet1"],"not_rendered":{"charts":0,"images":0,"macros":0,"external_links":0,"defined_names":1,"comments":0,"pivot_tables":0},"unopened":[],"bounds":{"document_bytes":16777216,"sheet_cells":100000,"rows_first":2000,"rows_last":500,"rows_between":2000,"halvings":0,"cell_chars":16384,"cell_head_chars":4096},"cells_cut":0,"cells_raw":0,"read":"whole","date_system":"1904"}

{"sheet":"Sheet1","index":0,"n_rows":60,"n_cols":16,"rows_kept":60,"cut":false,"hidden":false,"merged":[[53,3,53,15],[19,3,19,15],[47,3,47,15],[48,3,48,15],[49,3,49,15],[50,3,50,15],[51,3,51,15],[42,3,42,15],[43,3,43,15],[44,3,44,15],[45,3,45,15],[46,3,46,15],[36,3,36,15],[37,3,37,15],[39,3,39,15],[40,3,40,15],[41,3,41,15],[8,3,8,15],[12,3,12,15],[14,3,14,15],[22,3,22,15],[7,3,7,15],[6,3,6,15],[0,1,0,15],[2,1,2,15],[3,3,3,15],[1,1,1,15]]}
[null,"School Infrastructure Database (SID)  End-of-Year (EOY) 2021 Data Collection Worksheet "]
[]
[null,"Note: This worksheet has been provided to assist you with your SID data collection. All data must be submitted via the online SID Application or via the SID bulk upload process no later than June 30, 2021.  The SID Data Field Descriptions document is available at www.michigan.gov/cepi.  Click on \"CEPI Application\" and then click on \"School Infrastructure Database\".  The field descriptions are located under the heading \"Manuals\".  "]
[null,"Field #","    Field Name","Number of Incidents by Month"]
[null,null,null,"July","Aug","Sept","Oct","Nov","Dec","Jan","Feb","Mar","Apr","May","Jun","Totals"]
[null,null,"Crime & Safety "]
[null,1,"Reserved Field ",{"$f":"IF(SUM(D7:O7)>0,SUM(D7:O7),\" \")","v":" "}]
[null,2,"Reserved Field "]
[null,3,"Reserved Field    ",{"$f":"IF(SUM(D9:O9)>0,SUM(D9:O9),\" \")","v":" "}]
[null,4,"School Disciplinary Problems",null,null,null,null,null,null,null,null,null,null,null,null,{"$f":"IF(SUM(D10:O10)>0,SUM(D10:O10),\" \")","v":" "}]
["*","4A","Bullying (Required)",null,null,null,null,null,null,null,null,null,null,null,null," "]
[null,"4B","Reserved Field    ",null,null,null,null,null,null,null,null,null,null,null,null," "]
[null,"4C","Reserved Field",{"$f":"IF(SUM(D13:O13)>0,SUM(D13:O13),\" \")","v":" "}]
[null,5,"Reserved Field"]
[null,6,"Reserved Field",{"$f":"IF(SUM(D15:O15)>0,SUM(D15:O15),\" \")","v":" "}]
[null,7,"Reserved Field",null,null,null,null,null,null,null,null,null,null,null,null," "]
[null,8,"Reserved Field"]
[null,9,"Reserved Field",null,null,null,null,null,null,null,null,null,null,null,null," "]
[null,10,"Reserved Field",null,null,null,null,null,null,null,null,null,null,null,null," "]
[null,11,"Reserved Field ",{"$f":"IF(SUM(D20:O20)>0,SUM(D20:O20),\" \")","v":" "}]
[null,12,"Reserved Field",null,null,null,null,null,null,null,null,null,null,null,null," "]
[null,13,"Reserved Field",null,null,null,null,null,null,null,null,null,null,null,null," "]
[null,14,"Reserved Field",{"$f":"IF(SUM(D23:O23)>0,SUM(D23:O23),\" \")","v":" "}]
[null,15,"Reserved Field",null,null,null,null,null,null,null,null,null,null,null,null," "]
[null,16,"Reserved Field",null,null,null,null,null,null,null,null,null,null,null,null," "]
[null,17,"Reserved Field",null,null,null,null,null,null,null,null,null,null,null,null," "]
[null,18,"Reserved Field",null,null,null,null,null,null,null,null,null,null,null,null," "]
[null,19,"Reserved Field",null,null,null,null,null,null,null,null,null,null,null,null," "]
[null,20,"Reserved Field",null,null,null,null,null,null,null,null,null,null,null,null," "]
[null,21,"Reserved Field",null,null,null,null,null,null,null,null,null,null,null,null," "]
[null,22,"Reserved Field"]
[null,23,"Reserved Field"]
[null,24,"Reserved Field"]
[null,25,"Reserved Field"]
[null,26,"Reserved Field"]
[null,27,"Reserved Field"]
[null,28,"Reserved"]
[null,29,"Reserved"]
[null,null,"Dual Enrollment   "]
[null,30,"Reserved"]
[null,31,"Reserved"]
[null,32,"Reserved"]
[null,33,"Reserved"]
[null,34,"Reserved"]
[null,35,"Reserved"]
[null,36,"Reserved"]
[null,37,"Reserved"]
[null,38,"Reserved"]
[null,39,"Reserved"]
[null,40,"Reserved"]
[null,41,"Reserved"]
[null,42,"Reserved"]
[null,null,"Additional Data Requirements "]
[null,43,"Reserved"]
["*",44,"Victims of Violent Criminal Offenses (Required)"]
["*",50,"Instances of Administration of an Opioid Antagonist to a Pupil"]
["*",51,"Instances of Administration of an Epinephrine Auto-Injector to a Pupil in a School Year "]
["*",52,"Pupils Who Were Administered an Epinephrine Auto-Injector Not Known to be Severely Allergic "]
["*",53,"Pupils Who Were Administered an Epinephrine Auto-Injector Using the School's Stock "]
["*","Indicates a Required Field"]